bitfinex/quotes_SOLUSD_20241126
["timestamp","ask_amount","ask_price","bid_price","bid_amount"]
[1732620892401,15.6286,223.95,223.78,44.56948807]
[1732620892609,5.0,223.91,223.72,4.4697]
[1732620892893,44.56948807,223.82,223.73,44.56948807]
[1732620893292,44.56948807,223.8,223.71,44.56948807]
[1732620893478,44.56948807,223.78,223.69,44.56948807]
[1732620893680,44.56948807,223.8,223.71,44.56948807]
[1732620893875,44.56948807,223.8,223.33,5.0]
[1732620893876,20.0,223.74,223.33,5.0]
[1732620894106,20.0,223.61,223.37,5.0]
[1732620894285,23.776884,223.69,223.38,5.67103743]
[1732620894599,23.776884,223.65,223.38,0.67103743]
[1732620894780,23.776884,223.65,223.38,5.67103743]
[1732620895101,44.56948807,223.62,223.52,44.56948807]
[1732620895300,44.56948807,223.62,223.43,5.0]
[1732620895301,44.56948807,223.66,223.56,44.56948807]
[1732620895499,4.4704,223.69,223.54,44.56948807]
[1732620895500,44.56948807,223.64,223.54,44.56948807]
[1732620895879,44.56948807,223.74,223.58,44.56948807]
[1732620895880,44.56948807,223.68,223.58,44.56948807]
[1732620896075,44.56948807,223.68,223.6,44.56948807]
[1732620896301,44.56948807,223.74,223.56,44.56948807]
[1732620896302,44.56948807,223.64,223.56,44.56948807]
[1732620896605,49.03898807,223.74,223.56,44.56948807]
[1732620896606,44.56948807,223.66,223.56,44.56948807]
[1732620896902,44.56948807,223.68,223.58,44.56948807]
[1732620897400,44.56948807,223.7,223.6,44.56948807]
[1732620897601,44.56948807,223.66,223.56,44.56948807]
[1732620897904,49.03898807,223.74,223.41,114.56948807]
[1732620897905,44.56948807,223.68,223.58,44.56948807]
[1732620898074,44.56948807,223.7,223.6,44.56948807]
[1732620898504,44.56948807,223.76,223.66,44.56948807]
[1732620898688,44.56948807,223.8,223.7,44.56948807]
[1732620898892,44.56948807,223.82,223.72,44.56948807]
[1732620899080,44.56948807,223.78,223.68,44.56948807]
[1732620899282,44.56948807,223.8,223.72,44.56948807]
[1732620899490,17.9981,223.97,223.68,44.56948807]
[1732620899491,44.56948807,223.78,223.68,44.56948807]
[1732620899683,44.56948807,223.76,223.68,44.56948807]
[1732620899906,44.56948807,223.78,223.7,44.56948807]
[1732620900210,44.56948807,223.8,223.72,44.56948807]
[1732620900386,44.56948807,223.88,223.78,44.56948807]
[1732620900585,44.56948807,223.88,223.8,44.56948807]
[1732620900784,44.56948807,223.82,223.75,0.66998462]
[1732620901111,44.56948807,223.76,223.61,4.472]
[1732620901411,44.56948807,223.85,223.61,4.472]
[1732620901412,44.56948807,223.73,223.64,44.56948807]
[1732620901613,44.56948807,223.75,223.66,44.56948807]
[1732620901796,44.56948807,223.69,223.6,44.56948807]
[1732620902182,44.56948807,223.67,223.58,44.56948807]
[1732620902383,4.4674,223.84,223.66,44.56948807]
[1732620902611,4.465,223.96,223.79,44.56948807]
[1732620902810,4.465,223.96,223.7,5.0]
[1732620902811,44.56948807,223.89,223.73,10.0]
[1732620903022,44.56948807,223.96,223.8,5.0]
[1732620903214,9.38731147,224.16,223.8,5.0]
[1732620903215,44.56948807,224.02,223.86,5.0]
[1732620903506,44.56948807,224.15,224.0,44.56948807]
[1732620903685,44.56948807,224.17,224.05,44.56948807]
[1732620903886,4.4592,224.26,224.14,44.56948807]
[1732620904081,4.4592,224.26,224.05,5.0]
[1732620904082,44.56948807,224.27,224.18,44.56948807]
[1732620904286,4.4567,224.38,224.26,44.56948807]
[1732620904518,44.56948807,224.36,224.26,44.56948807]
[1732620904707,44.56948807,224.36,224.28,44.56948807]
[1732620904886,16.139,224.44,224.14,70.0]
[1732620904887,44.56948807,224.31,224.22,44.56948807]
[1732620905089,44.56948807,224.29,224.2,44.56948807]
[1732620905305,44.56948807,224.31,224.22,44.56948807]
[1732620905510,0.7916943,224.39,224.25,5.0]
[1732620905714,0.13504837,224.38,224.33,44.56948807]
[1732620906083,0.13504837,224.38,224.32,44.56948807]
[1732620906284,0.13504837,224.38,224.37,44.56948807]
[1732620906487,0.7916943,224.39,224.37,44.56948807]
[1732620906687,45.36118237,224.39,224.31,44.56948807]
[1732620906917,44.56948807,224.35,224.27,44.56948807]
[1732620907084,44.56948807,224.35,224.2,15.6109]
[1732620907085,44.56948807,224.38,224.32,20.0]
[1732620907285,0.7916943,224.39,224.31,4.4581]
[1732620907584,0.7916943,224.39,224.35,20.0]
[1732620907790,0.7916943,224.39,224.31,4.4581]
[1732620907993,0.7916943,224.39,224.37,20.0]
[1732620908192,0.7916943,224.39,224.38,44.56948807]
[1732620909010,44.56948807,224.57,224.41,20.0]
[1732620909310,4.4509,224.67,224.41,20.0]
[1732620909311,44.56948807,224.49,224.41,44.56948807]
[1732620909491,30.4102,224.69,224.47,44.56948807]
[1732620909697,11.1275,224.67,224.42,20.0]
[1732620909897,12.3385,224.71,224.46,20.0]
[1732620909898,4.4511,224.66,224.46,20.0]
[1732620910202,15.579,224.66,224.46,20.0]
[1732620910522,5.0,224.63,224.39,4.4564]
[1732620910694,44.56948807,224.5,224.26,5.0]
[1732620910900,44.56948807,224.5,224.41,44.56948807]
[1732620911096,44.56948807,224.54,224.43,44.56948807]
[1732620911404,44.56948807,224.56,224.48,44.56948807]
[1732620911590,44.56948807,224.54,224.44,44.56948807]
[1732620911790,44.56948807,224.56,224.48,44.56948807]
[1732620912011,44.56948807,224.54,224.46,44.56948807]
[1732620912203,44.56948807,224.54,224.41,4.4559]
[1732620912204,44.56948807,224.59,224.43,5.0]
[1732620912394,4.452,224.62,224.48,44.56948807]
[1732620912395,44.56948807,224.57,224.48,44.56948807]
[1732620912593,44.56948807,224.59,224.5,44.56948807]
[1732620913225,44.56948807,224.57,224.5,44.56948807]
[1732620913512,44.56948807,224.53,224.44,44.56948807]
[1732620913720,44.56948807,224.52,224.35,20.0]
[1732620913893,4.453,224.57,224.42,44.56948807]
[1732620913894,44.56948807,224.5,224.42,44.56948807]
[1732620914092,44.56948807,224.5,224.43,44.56948807]
[1732620914327,44.56948807,224.56,224.47,44.56948807]
[1732620914823,44.56948807,224.61,224.53,44.56948807]
[1732620915123,10.9,224.54,224.52,44.56948807]
[1732620915293,27.47186844,224.68,224.54,20.0]
[1732620915623,27.47186844,224.68,224.66,44.56948807]
[1732620916694,27.47186844,224.68,224.67,44.56948807]
[1732620917296,27.47186844,224.68,224.65,44.56948807]
[1732620917611,27.47186844,224.68,224.67,44.56948807]
[1732620918091,0.7916943,224.72,224.67,86.76637207]
[1732620918292,0.7916943,224.72,224.66,70.0]
[1732620918293,0.7916943,224.72,224.71,5.0]
[1732620918502,0.7916943,224.72,224.71,44.56948807]
[1732620918699,0.7916943,224.72,224.71,54.56948807]
[1732620918897,44.56948807,224.95,224.71,78.34637207]
[1732620919210,44.56948807,224.89,224.82,44.56948807]
[1732620919391,21.3778,224.97,224.64,75.0]
[1732620919392,44.56948807,224.86,224.64,75.0]
[1732620919591,15.5589,224.95,224.72,5.0]
[1732620919811,15.5589,224.95,224.71,5.0]
[1732620919812,15.5589,224.95,224.73,33.776884]
[1732620920205,4.4446,224.99,224.77,23.776884]
[1732620920411,4.4446,224.99,224.78,0.66676091]
[1732620920725,44.56948807,224.94,224.87,44.56948807]
[1732620921014,44.56948807,224.94,224.78,5.0]
[1732620921015,44.56948807,224.92,224.84,44.56948807]
[1732620921216,4.4446,224.99,224.8,5.0]
[1732620921395,4.4438,225.03,224.83,5.0]
[1732620921598,4.4438,225.03,224.86,23.776884]
[1732620921899,5.2350943,225.06,224.88,23.776884]
[1732620922098,5.2350943,225.06,224.83,5.0]
[1732620922413,0.7916943,225.06,224.89,5.0]
[1732620922721,44.56948807,225.02,224.95,40.21240872]
[1732620922917,5.2350943,225.06,224.95,40.21240872]
[1732620922918,5.2350943,225.06,224.95,44.56948807]
[1732620923115,5.2350943,225.06,224.89,23.776884]
[1732620923415,5.2350943,225.06,224.9,4.4464]
[1732620923810,0.7916943,225.06,224.91,10.66644749]
[1732620924004,0.7916943,225.06,224.91,0.66644749]
[1732620924316,44.56948807,225.01,224.9,4.4464]
[1732620924554,44.56948807,225.01,224.94,44.56948807]
[1732620924819,15.552,225.05,224.8,15.5692]
[1732620925003,5.0,225.03,224.81,0.66675646]
[1732620925199,20.0,225.02,224.8,4.4483]
[1732620925405,23.776884,224.99,224.81,5.0]
[1732620925815,23.776884,224.99,224.86,44.56948807]
[1732620925816,44.56948807,224.93,224.86,44.56948807]
[1732620926000,44.56948807,224.98,224.9,44.56948807]
[1732620926201,23.776884,224.99,224.84,44.56948807]
[1732620926202,44.56948807,224.99,224.92,44.56948807]
[1732620926430,44.56948807,225.02,224.94,44.56948807]
[1732620926725,44.56948807,225.01,224.95,44.56948807]
[1732620927119,44.56948807,225.05,224.98,44.56948807]
[1732620927326,44.56948807,225.01,224.93,44.56948807]
[1732620927516,49.01348807,225.02,224.94,44.56948807]
[1732620927714,44.56948807,225.01,224.94,44.56948807]
[1732620927912,44.56948807,225.0,224.93,44.56948807]
[1732620928116,49.01348807,225.02,224.95,44.56948807]
[1732620928432,44.56948807,225.02,224.95,44.56948807]
[1732620928605,45.36118237,225.06,224.99,44.56948807]
[1732620928803,44.56948807,225.04,224.94,44.56948807]
[1732620929008,44.56948807,225.02,224.94,44.56948807]
[1732620929226,44.56948807,225.02,224.85,11.1181]
[1732620929227,44.56948807,225.02,224.92,44.56948807]
[1732620929433,44.56948807,225.02,224.94,44.56948807]
[1732620929724,44.56948807,224.96,224.78,5.0]
[1732620929928,23.776884,224.92,224.83,44.56948807]
[1732620930132,23.776884,224.9,224.73,44.56948807]
[1732620930314,23.776884,224.9,224.65,70.0]
[1732620930315,44.56948807,224.79,224.71,44.56948807]
[1732620930631,20.0,224.78,224.56,4.4531]
[1732620930837,23.776884,224.73,224.57,17.80625]
[1732620931011,5.0,224.76,224.36,108.96778521]
[1732620931012,23.776884,224.69,224.36,108.96778521]
[1732620931216,23.776884,224.65,224.43,5.0]
[1732620931437,28.776884,224.63,224.45,4.4553]
[1732620931714,44.56948807,224.48,224.41,44.56948807]
[1732620931918,4.4515,224.64,224.46,44.56948807]
[1732620932116,4.4515,224.64,224.3,5.0]
[1732620932117,5.0,224.59,224.3,9.4583]
[1732620932314,20.0,224.61,224.34,75.0]
[1732620932514,4.4515,224.64,224.35,5.66786285]
[1732620932706,4.4515,224.64,224.35,14.08786285]
[1732620932903,4.4515,224.64,224.37,83.42]
[1732620933116,23.776884,224.63,224.59,44.56948807]
[1732620933314,49.01958807,224.71,224.61,44.56948807]
[1732620933530,44.56948807,224.69,224.59,44.56948807]
[1732620933707,4.4501,224.71,224.57,44.56948807]
[1732620933708,44.56948807,224.67,224.57,44.56948807]
[1732620933907,44.56948807,224.63,224.55,44.56948807]
[1732620934123,15.5755,224.71,224.4,49.56948807]
[1732620934124,44.56948807,224.71,224.51,60.15868807]
[1732620934327,20.7242,224.76,224.51,60.15868807]
[1732620934328,4.448,224.82,224.69,44.56948807]
[1732620934547,9.448,224.82,224.51,60.15868807]
[1732620934823,4.448,224.82,224.53,18.42]
[1732620935038,4.448,224.82,224.54,37.86433066]
[1732620935329,5.0,224.78,224.54,0.66744666]
[1732620935630,44.56948807,224.63,224.56,44.56948807]
[1732620935840,44.56948807,224.63,224.49,4.4544]
[1732620935841,44.56948807,224.65,224.57,44.56948807]
[1732620936043,23.776884,224.66,224.57,44.56948807]
[1732620936230,44.56948807,224.73,224.53,44.56948807]
[1732620936231,23.776884,224.62,224.53,44.56948807]
[1732620936430,23.776884,224.62,224.55,44.56948807]
[1732620936852,23.776884,224.62,224.42,0.66779282]
[1732620936853,23.776884,224.58,224.51,44.56948807]
[1732620937029,44.56948807,224.65,224.55,44.56948807]
[1732620937354,44.56948807,224.63,224.55,44.56948807]
[1732620937529,44.56948807,224.58,224.49,44.56948807]
[1732620937928,44.56948807,224.64,224.55,44.56948807]
[1732620938228,23.776884,224.65,224.57,44.56948807]
[1732620938449,44.56948807,224.74,224.63,44.56948807]
[1732620938628,44.56948807,224.78,224.69,44.56948807]
[1732620938828,44.56948807,224.81,224.61,20.0]
[1732620939144,8.4633,224.83,224.62,0.66726398]
[1732620939347,8.4633,224.83,224.62,20.66726398]
[1732620939581,12.9112,224.83,224.65,20.0]
[1732620939853,12.9112,224.83,224.63,4.4517]
[1732620939854,12.9112,224.83,224.66,20.66730302]
[1732620940066,44.56948807,224.84,224.76,44.56948807]
[1732620940354,44.56948807,224.8,224.72,44.56948807]
[1732620940528,44.56948807,224.82,224.74,44.56948807]
[1732620940728,44.56948807,224.84,224.74,44.56948807]
[1732620940927,44.56948807,224.82,224.72,44.56948807]
[1732620941150,44.56948807,224.8,224.72,44.56948807]
[1732620941330,44.56948807,224.76,224.66,44.56948807]
[1732620941532,44.56948807,224.74,224.66,44.56948807]
[1732620941735,44.56948807,224.78,224.7,44.56948807]
[1732620941935,44.56948807,224.8,224.72,44.56948807]
[1732620942249,4.448,224.82,224.72,44.56948807]
[1732620942250,44.56948807,224.82,224.72,44.56948807]
[1732620942459,4.4466,224.89,224.63,10.66732364]
[1732620942650,49.01608807,224.89,224.8,44.56948807]
[1732620942831,44.56948807,224.87,224.78,44.56948807]
[1732620943026,44.56948807,224.85,224.68,20.0]
[1732620943240,44.56948807,224.85,224.79,20.0]
[1732620943449,4.4456,224.94,224.84,44.56948807]
[1732620943652,44.56948807,224.91,224.82,44.56948807]
[1732620943836,44.56948807,224.89,224.82,44.56948807]
[1732620944040,44.56948807,224.89,224.74,0.66690811]
[1732620944041,44.56948807,224.89,224.8,44.56948807]
[1732620944241,44.56948807,224.87,224.8,44.56948807]
[1732620944444,44.56948807,224.83,224.76,44.56948807]
[1732620944743,23.776884,224.86,224.8,44.56948807]
[1732620944952,23.776884,224.84,224.79,20.0]
[1732620945134,44.56948807,224.87,224.8,44.56948807]
[1732620945334,44.56948807,224.91,224.82,44.56948807]
[1732620945635,0.5159972,224.92,224.86,44.56948807]
[1732620946059,0.5159972,224.92,224.9,44.56948807]
[1732620946237,0.5159972,224.92,224.88,44.56948807]
[1732620946557,0.5159972,224.92,224.86,44.56948807]
[1732620946853,0.5159972,224.92,224.88,44.56948807]
[1732620947031,0.5159972,224.92,224.9,44.56948807]
[1732620948045,0.5159972,224.92,224.84,55.68838807]
[1732620948046,0.5159972,224.92,224.88,44.56948807]
[1732620948256,0.5159972,224.92,224.9,44.56948807]
[1732620948552,0.5159972,224.92,224.88,44.56948807]
[1732620948860,0.5159972,224.92,224.9,44.56948807]
[1732620949243,0.5159972,224.92,224.8,15.5692]
[1732620949244,0.5159972,224.92,224.86,44.56948807]
[1732620949436,0.5159972,224.92,224.8,15.5692]
[1732620949437,0.5159972,224.92,224.88,44.56948807]
[1732620949634,0.5159972,224.92,224.88,49.01618807]
[1732620950053,0.5159972,224.92,224.86,44.56948807]
[1732620950555,0.5159972,224.92,224.88,44.56948807]
[1732620950753,0.5159972,224.92,224.9,44.56948807]
[1732620950953,0.5159972,224.92,224.91,44.56948807]
[1732620952935,0.5159972,224.92,224.91,20.0]
[1732620953453,0.5159972,224.92,224.89,44.56948807]
[1732620953659,0.5159972,224.92,224.79,11.1209]
[1732620953660,24.2928812,224.92,224.85,44.56948807]
[1732620953830,0.5159972,224.92,224.8,4.4483]
[1732620954039,23.776884,224.9,224.85,44.56948807]
[1732620954270,24.2928812,224.92,224.83,44.56948807]
[1732620954641,0.5159972,224.92,224.89,44.56948807]
[1732620954834,0.5159972,224.92,224.8,15.5692]
[1732620955041,0.5159972,224.92,224.87,44.56948807]
[1732620955357,0.5159972,224.92,224.88,44.56948807]
[1732620955562,0.5159972,224.92,224.9,44.56948807]
[1732620957549,0.5159972,224.92,224.91,4.4462]
[1732620957945,0.5159972,224.92,224.88,44.56948807]
[1732620958249,0.5159972,224.92,224.86,44.56948807]
[1732620958460,23.776884,224.86,224.78,44.56948807]
[1732620958638,23.776884,224.81,224.72,44.56948807]
[1732620958838,28.776884,224.81,224.53,4.4537]
[1732620959067,23.776884,224.77,224.59,5.0]
[1732620959368,23.776884,224.77,224.6,0.66755581]
[1732620959574,23.776884,224.77,224.61,15.5825]
[1732620959862,23.776884,224.77,224.7,44.56948807]
[1732620960065,23.776884,224.77,224.62,45.23684295]
[1732620960066,23.776884,224.81,224.74,44.56948807]
[1732620960360,23.776884,224.79,224.72,44.56948807]
[1732620960543,23.776884,224.75,224.69,44.56948807]
[1732620960747,23.776884,224.81,224.73,44.56948807]
[1732620960964,44.56948807,224.76,224.67,44.56948807]
[1732620961137,44.56948807,224.72,224.63,44.56948807]
[1732620961346,68.34637207,224.71,224.63,44.56948807]
[1732620961666,23.776884,224.81,224.63,0.66752745]
[1732620962066,8.4753,224.85,224.56,75.66734387]
[1732620962067,4.4476,224.84,224.56,75.66734387]
[1732620962369,4.4476,224.84,224.64,5.0]
[1732620962573,44.56948807,224.79,224.71,44.56948807]
[1732620963159,44.56948807,224.84,224.55,60.12]
[1732620963160,89.13897614,224.73,224.55,15.5866]
[1732620963364,89.13897614,224.73,224.55,60.15608807]
[1732620963365,44.56948807,224.64,224.55,60.15608807]
[1732620963578,44.56948807,224.6,224.51,11.1352]
[1732620963867,23.776884,224.61,224.44,44.56948807]
[1732620964061,23.776884,224.57,224.42,44.56948807]
[1732620964257,23.776884,224.57,224.44,44.56948807]
[1732620964258,44.56948807,224.52,224.44,44.56948807]
[1732620964468,23.776884,224.57,224.48,44.56948807]
[1732620964648,53.04478807,224.62,224.52,44.56948807]
[1732620964649,44.56948807,224.6,224.52,44.56948807]
[1732620964843,23.776884,224.59,224.55,44.56948807]
[1732620965170,8.4753,224.75,224.58,44.56948807]
[1732620965370,20.9437,224.78,224.55,5.0]
[1732620965371,44.56948807,224.78,224.7,44.56948807]
[1732620965537,44.56948807,224.82,224.74,44.56948807]
[1732620965865,44.56948807,224.76,224.68,44.56948807]
[1732620966067,44.56948807,224.81,224.73,44.56948807]
[1732620966241,44.56948807,224.81,224.68,0.66740338]
[1732620966242,44.56948807,224.77,224.64,15.5799]
[1732620966449,44.56948807,224.79,224.69,44.56948807]
[1732620966646,4.4472,224.86,224.65,0.6674234]
[1732620966647,44.56948807,224.75,224.65,44.56948807]
[1732620966844,44.56948807,224.77,224.69,44.56948807]
[1732620967046,44.56948807,224.7,224.5,4.4543]
[1732620967270,44.56948807,224.84,224.5,4.4543]
[1732620967271,44.56948807,224.6,224.51,44.56948807]
[1732620967444,44.56948807,224.62,224.53,44.56948807]
[1732620967762,5.0,224.76,224.5,37.8618]
[1732620967966,5.0,224.78,224.5,37.8618]
[1732620968168,23.776884,224.76,224.51,5.6677364]
[1732620968355,4.4483,224.8,224.51,0.6677364]
[1732620968672,44.56948807,224.74,224.64,44.56948807]
[1732620968985,44.56948807,224.66,224.58,44.56948807]
[1732620969448,25.5692,224.8,224.51,44.56948807]
[1732620969449,15.5692,224.8,224.6,44.56948807]
[1732620969649,8.4753,224.87,224.68,44.56948807]
[1732620969959,8.4753,224.87,224.6,44.56948807]
[1732620969960,44.56948807,224.69,224.6,44.56948807]
[1732620970440,44.56948807,224.67,224.58,44.56948807]
[1732620970763,44.56948807,224.6,224.46,44.56948807]
[1732620970977,44.56948807,224.6,224.31,70.0]
[1732620970978,44.56948807,224.47,224.43,4.4557]
[1732620971266,49.56948807,224.62,224.36,44.56948807]
[1732620971267,44.56948807,224.45,224.36,44.56948807]
[1732620971567,23.776884,224.61,224.37,5.66828971]
[1732620971774,28.229084,224.61,224.38,37.8821]
[1732620971976,39.359484,224.61,224.39,1.01863464]
[1732620972159,39.359484,224.61,224.39,6.68681744]
[1732620972160,28.229084,224.61,224.39,6.68681744]
[1732620972355,44.56948807,224.6,224.52,44.56948807]
[1732620972674,44.56948807,224.58,224.5,44.56948807]
[1732620972962,44.56948807,224.6,224.51,44.56948807]
[1732620973165,44.56948807,224.6,224.53,44.56948807]
[1732620973382,44.56948807,224.58,224.5,1.01813553]
[1732620973557,44.56948807,224.58,224.51,44.56948807]
[1732620973773,44.56948807,224.6,224.51,49.02358807]
[1732620973953,8.4753,224.65,224.53,44.56948807]
[1732620974157,10.0,224.77,224.51,5.47219019]
[1732620974158,44.56948807,224.64,224.55,44.56948807]
[1732620974380,44.56948807,224.68,224.6,44.56948807]
[1732620974550,44.56948807,224.66,224.58,44.56948807]
[1732620975068,8.4753,224.76,224.62,44.56948807]
[1732620975379,8.4753,224.76,224.51,82.42958807]
[1732620975380,44.56948807,224.69,224.6,44.56948807]
[1732620975752,44.56948807,224.69,224.61,4.4521]
[1732620975956,8.4753,224.86,224.66,44.56948807]
[1732620976168,17.810222,224.83,224.75,44.56948807]
[1732620976367,20.9437,224.89,224.7,44.56948807]
[1732620976368,44.56948807,224.79,224.7,44.56948807]
[1732620976576,20.9437,224.89,224.61,60.1041]
[1732620976577,44.56948807,224.75,224.66,44.56948807]
[1732620976950,44.56948807,224.84,224.62,44.56948807]
[1732620976951,44.56948807,224.71,224.62,44.56948807]
[1732620977155,44.56948807,224.67,224.61,4.4521]
[1732620977386,44.56948807,224.65,224.61,4.4521]
[1732620977673,44.56948807,224.65,224.58,44.56948807]
[1732620977887,44.56948807,224.67,224.59,4.4525]
[1732620978054,23.776884,224.66,224.59,4.4525]
[1732620978586,44.56948807,224.67,224.59,4.4525]
[1732620978764,23.776884,224.66,224.6,44.56948807]
[1732620979088,44.56948807,224.69,224.63,20.0]
[1732620979265,44.56948807,224.69,224.6,44.56948807]
[1732620979266,44.56948807,224.76,224.69,20.0]
[1732620979464,44.56948807,224.72,224.62,44.56948807]
[1732620979774,44.56948807,224.74,224.66,44.56948807]
[1732620979977,44.56948807,224.72,224.65,24.4512]
[1732620980270,44.56948807,224.72,224.67,20.0]
[1732620980584,44.56948807,224.74,224.67,20.0]
[1732620980769,44.56948807,224.77,224.71,20.0]
[1732620980971,44.56948807,224.73,224.67,20.0]
[1732620981172,4.4478,224.83,224.71,20.0]
[1732620981173,44.56948807,224.77,224.71,20.0]
[1732620981556,44.56948807,224.81,224.75,20.0]
[1732620981969,44.56948807,224.87,224.81,20.0]
[1732620982178,5.5159972,224.92,224.85,20.0]
[1732620982179,62.37413507,224.91,224.85,20.0]
[1732620982362,17.804647,224.91,224.86,44.56948807]
[1732620982564,17.804647,224.91,224.9,64.56948807]
[1732620982760,0.5159972,224.92,224.9,64.56948807]
[1732620983079,44.56948807,225.07,224.91,0.66663798]
[1732620983270,44.56948807,225.05,225.0,20.0]
[1732620983472,44.56948807,225.01,224.94,20.0]
[1732620983677,44.56948807,225.03,224.98,20.0]
[1732620983974,44.56948807,225.03,224.85,0.66669141]
[1732620983975,44.56948807,225.05,225.0,24.4443]
[1732620984176,44.56948807,225.03,224.96,4.4452]
[1732620984373,44.56948807,225.03,224.98,20.0]
[1732620984613,44.56948807,225.01,224.98,20.0]
[1732620984961,44.56948807,225.03,224.96,20.0]
[1732620985158,44.56948807,225.01,224.93,49.01518807]
[1732620985459,44.56948807,224.97,224.94,1.01614398]
[1732620985773,44.56948807,224.99,224.94,1.01614398]
[1732620986076,23.776884,225.0,224.95,4.4454]
[1732620986268,44.56948807,225.03,224.95,49.01488807]
[1732620986582,44.56948807,225.07,224.99,44.56948807]
[1732620987086,44.56948807,225.07,225.02,20.0]
[1732620987958,44.56948807,225.09,225.03,4.4438]
[1732620988186,44.56948807,225.11,225.04,44.56948807]
[1732620988365,44.56948807,225.08,225.03,24.4438]
[1732620989187,44.56948807,225.08,225.01,4.4441]
[1732620989382,44.56948807,225.08,225.03,20.0]
[1732620989597,23.776884,225.09,225.03,20.0]
[1732620989770,23.276884,225.09,225.03,20.0]
[1732620989966,44.56948807,225.12,225.06,4.4432]
[1732620990178,44.56948807,225.12,225.07,20.0]
[1732620990687,5.0,225.25,225.11,20.0]
[1732620990688,44.56948807,225.17,225.11,20.0]
[1732620991161,44.56948807,225.19,225.11,20.0]
[1732620991366,44.56948807,225.15,225.06,49.01268807]
[1732620991578,44.56948807,225.13,225.06,49.01268807]
[1732620991995,44.56948807,225.14,225.06,49.01268807]
[1732620992385,44.56948807,225.16,225.08,44.56948807]
[1732620992687,23.776884,225.15,225.08,44.56948807]
[1732620992895,44.56948807,225.14,225.06,60.12078807]
[1732620993190,44.56948807,225.12,225.06,4.4432]
[1732620993485,44.56948807,225.14,225.07,20.0]
[1732620993694,44.56948807,225.18,225.11,20.0]
[1732620994071,44.56948807,225.18,225.11,24.4422]
[1732620994591,44.91027327,225.18,225.11,24.4422]
[1732620994765,0.3407852,225.18,225.13,20.0]
[1732620994966,0.3407852,225.18,225.15,20.0]
[1732620995176,0.3407852,225.18,225.16,44.56948807]
[1732620995387,0.3407852,225.18,225.15,20.0]
[1732620995581,44.91027327,225.18,225.12,20.0]
[1732620995768,44.56948807,225.14,225.07,4.4429]
[1732620995968,0.3407852,225.18,225.07,49.01238807]
[1732620996189,44.56948807,225.16,225.07,49.01238807]
[1732620996383,44.56948807,225.16,225.09,44.56948807]
[1732620996588,23.776884,225.13,225.07,49.01238807]
[1732620996795,44.56948807,225.16,225.09,44.56948807]
[1732620996796,23.776884,225.15,225.09,44.56948807]
[1732620997094,23.776884,225.15,225.11,44.56948807]
[1732620997405,0.3407852,225.18,225.14,20.0]
[1732620997695,0.3407852,225.18,225.14,64.56948807]
[1732620998079,0.3407852,225.18,225.15,4.4414]
[1732620998872,0.3407852,225.18,225.14,20.0]
[1732620999387,0.3407852,225.18,225.12,44.56948807]
[1732620999575,0.3407852,225.18,225.06,55.67738807]
[1732620999576,0.3407852,225.18,225.15,44.56948807]
[1732620999784,0.3407852,225.18,225.17,20.0]
[1732621000093,0.3407852,225.18,225.17,69.01048807]
[1732621001080,0.3407852,225.18,225.17,64.56948807]
[1732621001269,0.3407852,225.18,225.16,4.4411]
[1732621001480,0.3407852,225.18,225.14,4.4415]
[1732621001790,44.56948807,225.16,225.08,4.4428]
[1732621001991,44.56948807,225.12,225.05,4.4433]
[1732621002182,44.56948807,225.17,225.05,4.4433]
[1732621002183,23.776884,225.13,225.05,49.01278807]
[1732621002394,23.776884,225.11,225.05,4.4433]
[1732621002588,23.776884,225.11,224.98,0.6663008]
[1732621002589,44.56948807,225.06,224.99,4.4446]
[1732621002769,44.56948807,225.01,225.0,1.01587301]
[1732621002971,23.776884,225.0,224.93,4.4457]
[1732621003284,23.776884,224.95,224.88,4.4468]
[1732621003469,44.56948807,224.94,224.88,4.4468]
[1732621003790,23.776884,224.91,224.88,4.4468]
[1732621003985,23.776884,224.91,224.86,15.5652]
[1732621004191,44.56948807,224.96,224.87,44.56948807]
[1732621004583,23.776884,224.95,224.87,44.56948807]
[1732621004779,44.56948807,224.94,224.86,5.4637055]
[1732621004979,23.776884,224.93,224.86,5.4637055]
[1732621005696,23.776884,224.9,224.86,5.4637055]
[1732621005908,44.56948807,224.87,224.86,1.0165055]
[1732621006213,44.56948807,224.87,224.63,49.02118807]
[1732621006214,23.776884,224.8,224.63,49.02118807]
[1732621006371,44.56948807,224.7,224.63,4.4517]
[1732621006799,23.776884,224.71,224.63,49.02118807]